bitfinex-derivatives/quotes_BNBF0:USTF0_20250509
["timestamp","ask_amount","ask_price","bid_price","bid_amount"]
[1746807598566,0.27344625,636.82,635.99,0.58565477]
[1746807598567,0.26579967,636.81,635.99,0.58565477]
[1746807598767,0.26579967,636.81,636.0,0.58562008]
[1746807598962,0.26579967,636.81,636.01,0.58562008]
[1746807599161,0.26579967,636.81,636.02,0.58562008]
[1746807599365,0.26579967,636.81,636.03,0.58562008]
[1746807599568,0.26579967,636.81,636.04,0.58562008]
[1746807599761,0.26579967,636.81,636.05,0.58562008]
[1746807599961,0.26579967,636.81,636.06,0.58562008]
[1746807600162,0.27344625,636.82,636.07,0.58562008]
[1746807600366,0.27344625,636.82,635.94,0.31449507]
[1746807600666,0.26577575,636.81,635.95,0.58540156]
[1746807600962,0.26577575,636.81,635.96,0.58540156]
[1746807601166,0.53918548,636.87,635.97,0.58540156]
[1746807601367,0.26577575,636.87,635.98,0.58540156]
[1746807601568,0.26577575,636.86,635.99,0.58540156]
[1746807601767,0.26577575,636.87,636.0,0.58540156]
[1746807601968,0.26577575,636.87,636.01,0.58540156]
[1746807602167,0.26577575,636.87,636.02,0.58540156]
[1746807602370,0.26577575,636.87,636.03,0.58540156]
[1746807602667,0.53917688,636.87,636.04,0.58540156]
[1746807602867,0.53917688,636.87,636.05,0.58540156]
[1746807603070,0.53917688,636.87,636.06,0.58540156]
[1746807603368,0.26577575,636.86,636.07,0.58540156]
[1746807603567,0.26577575,636.86,636.08,0.58540156]
[1746807603769,0.26577575,636.86,635.94,0.31449507]
[1746807603967,0.26577575,636.86,635.95,0.58578449]
[1746807604167,0.26577575,636.86,635.96,0.58578449]
[1746807604367,0.26577575,636.86,635.97,0.58578449]
[1746807604561,0.26577575,636.86,635.98,0.58578449]
[1746807604767,0.26577575,636.86,635.99,0.58578449]
[1746807604968,0.26577575,636.86,636.0,0.58578449]
[1746807605168,0.26577575,636.86,636.01,0.58578449]
[1746807605369,0.26577575,636.86,636.02,0.58603485]
[1746807605568,0.26577575,636.86,636.03,0.58603485]
[1746807605769,0.26577575,636.86,636.04,0.58600442]
[1746807605970,0.415,636.85,636.06,0.31443574]
[1746807606270,0.415,636.85,636.07,0.58600442]
[1746807606470,0.26577575,636.84,636.08,0.58600442]
[1746807606665,0.26577575,636.84,636.09,0.58600442]
[1746807606867,0.415,636.85,636.08,0.31442585]
[1746807607064,0.27343443,636.83,636.1,0.31441597]
[1746807607569,0.26578075,636.82,636.1,0.31441597]
[1746807608268,0.26578075,636.82,636.11,0.407]
[1746807609071,0.26578075,636.82,636.12,0.31440608]
[1746807612973,0.27342906,636.81,636.12,0.31440608]
[1746807613274,0.26578075,636.8,636.12,0.31440608]
[1746807614173,0.27342906,636.81,636.12,0.31440608]
[1746807614573,0.265815,636.8,636.12,0.31440608]
[1746807615169,0.27342906,636.81,636.12,0.31440608]
[1746807615573,0.26581386,636.8,636.12,0.31440608]
[1746807616174,0.27342906,636.79,636.12,0.31440608]
[1746807616673,0.26581386,636.78,636.12,0.31440608]
[1746807618977,0.27342906,636.77,636.12,0.31440608]
[1746807619377,0.26581386,636.76,636.12,0.31440608]
[1746807620081,0.26581386,636.76,636.13,0.58825713]
[1746807620273,0.26581386,636.76,636.14,0.90265333]
[1746807620576,0.26581386,636.76,636.14,0.3143962]
[1746807622279,0.26581386,636.8,636.14,0.3143962]
[1746807624076,0.26581386,636.8,636.15,0.58823682]
[1746807624277,0.26581386,636.8,636.16,0.58823682]
[1746807624479,0.26581386,636.8,636.17,0.90261819]
[1746807624676,0.415,636.85,636.18,0.90261325]
[1746807624978,0.27339899,636.81,636.19,0.90260831]
[1746807625179,0.27339899,636.81,636.2,0.31436655]
[1746807627685,2.0308231,638.03,636.2,0.31436655]
[1746807627983,0.27334208,636.81,636.2,0.31436655]
[1746807628288,0.26576685,637.43,636.2,0.31436655]
[1746807628482,0.27335711,636.8,636.2,0.31436655]
[1746807628885,2.0308231,637.99,636.2,0.31436655]
[1746807629086,0.27334208,636.81,636.2,0.31436655]
[1746807629386,0.26576617,637.43,636.2,0.31436655]
[1746807629581,0.27334208,636.81,636.2,0.31436655]
[1746807629786,0.26576617,637.43,636.2,0.31436655]
[1746807629986,0.26576617,636.8,636.2,0.31436655]
[1746807630187,0.27334208,636.81,636.2,0.31436655]
[1746807630387,0.26576878,636.8,636.2,0.31436655]
[1746807631288,0.27334208,636.81,636.2,0.31436655]
[1746807631488,0.26576878,636.8,636.2,0.31436655]
[1746807631789,0.27334208,636.81,636.2,0.31436655]
[1746807632089,0.26576742,636.8,636.2,0.31436655]
[1746807633885,0.26576742,636.8,636.21,0.58841218]
[1746807634089,0.26576742,636.8,636.22,0.90276884]
[1746807634287,0.27333349,636.85,636.23,0.58841218]
[1746807634488,0.27333349,636.85,636.24,0.58841218]
[1746807634690,0.26576742,636.84,636.25,0.58841218]
[1746807634891,0.26576742,636.84,636.26,0.58841218]
[1746807635089,0.26576742,636.84,636.27,0.58822006]
[1746807635289,0.26576742,636.84,636.22,0.31435666]
[1746807635487,0.26576742,636.84,636.23,0.5881274]
[1746807635691,0.26576742,636.84,636.24,0.58810465]
[1746807635992,0.26576742,636.84,636.25,0.58810465]
[1746807636193,0.26576742,636.84,636.26,0.58810465]
[1746807636386,0.26576742,636.84,636.27,0.58810465]
[1746807636588,0.26576742,636.84,636.22,0.31435666]
[1746807636788,0.26576742,636.84,636.23,0.58815536]
[1746807637097,0.2733292,636.87,636.24,0.58815536]
[1746807637293,0.2733292,636.87,636.25,0.58815536]
[1746807637490,0.26576742,636.86,636.22,0.31435666]
[1746807637793,0.26576742,636.86,636.23,0.58836813]
[1746807637994,0.26576742,636.86,636.24,0.58836813]
[1746807638193,0.26576742,636.86,636.25,0.58838637]
[1746807638391,0.26576742,636.86,636.22,0.31435666]
[1746807638592,0.26576742,636.86,636.23,0.58848617]
[1746807638888,0.26576742,636.86,636.24,0.58848617]
[1746807639093,0.26576742,636.86,636.22,0.31435666]
[1746807639289,0.26576742,636.86,636.23,0.58847625]
[1746807639592,0.26576742,636.86,636.24,0.58847625]
[1746807639793,0.26576742,636.86,636.25,0.58847625]
[1746807639992,0.26576742,636.86,636.22,0.31435666]
[1746807640193,0.27332383,636.85,636.23,0.58832066]
[1746807640390,0.27332383,636.85,636.24,0.31434678]
[1746807640693,0.26576742,636.84,636.24,0.31434678]
[1746807642197,0.27332383,636.85,636.24,0.31434678]
[1746807642495,0.26579598,636.84,636.24,0.31434678]
[1746807642995,0.27335067,636.83,636.24,0.31434678]
[1746807643191,0.26579598,636.82,636.24,0.31434678]
[1746807645995,0.2733657,636.81,636.24,0.31434678]
[1746807646595,0.26579598,636.8,636.24,0.31434678]
[1746807649501,0.26579598,636.8,636.25,0.413]
[1746807650500,0.2733657,636.81,636.25,0.413]
[1746807650894,0.26589654,636.8,636.25,0.413]
[1746807652002,0.2733818,636.79,636.25,0.413]
[1746807652405,0.26589654,636.78,636.25,0.413]
[1746807655002,0.27345377,636.77,636.25,0.413]
[1746807655802,0.26589654,636.76,636.25,0.413]
[1746807656800,0.26589654,636.75,636.25,0.413]
[1746807657204,0.26589654,636.76,636.25,0.413]
[1746807657504,0.26589654,636.75,636.25,0.413]
[1746807657906,0.26589654,636.74,636.25,0.413]
[1746807658108,0.5393718,636.74,636.25,0.413]
[1746807658302,0.26589654,636.73,636.25,0.413]
[1746807658604,0.27347526,636.74,636.25,0.413]
[1746807659006,0.26593774,636.73,636.25,0.413]
[1746807663908,0.26593774,636.84,636.26,0.3143369]
[1746807664113,0.27349245,636.72,636.26,0.3143369]
[1746807664310,0.26593774,636.84,636.26,0.3143369]
[1746807664710,0.27350642,636.71,636.26,0.3143369]
[1746807664910,0.26593774,636.84,636.26,0.3143369]
[1746807665212,0.27350642,636.7,636.26,0.3143369]
[1746807665411,0.26593774,636.84,636.26,0.3143369]
[1746807665609,0.26593774,636.83,636.26,0.3143369]
[1746807665805,0.27350642,636.69,636.26,0.3143369]
[1746807666005,0.26593774,636.82,636.26,0.3143369]
[1746807666209,0.26593774,636.68,636.26,0.3143369]
[1746807666410,0.53944416,636.68,636.26,0.3143369]
[1746807666607,0.26593774,636.84,636.26,0.3143369]
[1746807666812,0.27350642,636.67,636.26,0.3143369]
[1746807667314,0.53944416,636.66,636.26,0.3143369]
[1746807667610,0.26593774,636.65,636.26,0.3143369]
[1746807668210,0.26593774,636.64,636.26,0.3143369]
[1746807668511,0.26593774,636.63,636.26,0.3143369]
[1746807669011,0.26593774,636.62,636.26,0.3143369]
[1746807669411,0.26593774,636.61,636.26,0.3143369]
[1746807669713,0.26593774,636.6,636.26,0.3143369]
[1746807670113,0.26593774,636.59,636.26,0.3143369]
[1746807670714,0.26593774,636.58,636.26,0.3143369]
[1746807671112,0.26593774,636.65,636.26,0.3143369]
[1746807671416,0.26593774,636.64,636.26,0.3143369]
[1746807671715,0.26593774,636.63,636.26,0.3143369]
[1746807672115,0.26593774,636.62,636.26,0.3143369]
[1746807672414,0.26593774,636.61,636.26,0.3143369]
[1746807673618,0.26593774,636.6,636.26,0.3143369]
[1746807674215,0.26593774,636.59,636.26,0.3143369]
[1746807674609,0.26593774,636.58,636.26,0.3143369]
[1746807675016,0.26593774,636.57,636.26,0.3143369]
[1746807676016,0.26593774,636.56,636.26,0.3143369]
[1746807676516,0.26593774,636.55,636.26,0.3143369]
[1746807676920,0.26593774,636.54,636.26,0.3143369]
[1746807677222,0.26593774,636.53,636.26,0.3143369]
[1746807677721,0.53946889,636.52,636.26,0.3143369]
[1746807678326,0.26593774,636.51,636.26,0.3143369]
[1746807679027,0.27353115,636.5,636.26,0.3143369]
[1746807679627,0.26593774,636.49,636.26,0.3143369]
[1746807682133,0.27353545,636.48,636.26,0.3143369]
[1746807682530,0.26593774,636.47,636.26,0.3143369]
[1746807683535,0.26593774,636.46,636.26,0.3143369]
[1746807683829,0.26593774,636.47,636.26,0.3143369]
[1746807684934,0.273572,636.46,636.26,0.3143369]
[1746807685836,0.26593774,636.45,636.26,0.3143369]
[1746807687434,0.273572,636.46,636.26,0.3143369]
[1746807687630,0.26614482,636.44,636.26,0.3143369]
[1746807687934,0.26614482,636.45,636.26,0.3143369]
[1746807690934,0.27362147,636.44,636.26,0.3143369]
[1746807691133,0.26614482,636.43,636.26,0.3143369]
[1746807693937,0.27355587,636.42,636.26,0.3143369]
[1746807694233,0.26614482,636.41,636.26,0.3143369]
[1746807696238,0.27355587,636.42,636.26,0.3143369]
[1746807696534,0.26608631,636.41,636.26,0.3143369]
[1746807696940,0.27352577,636.4,636.26,0.3143369]
[1746807697242,0.26608631,636.39,636.26,0.3143369]
[1746807700042,0.27352147,636.38,636.26,0.3143369]
[1746807700541,0.26608631,636.37,636.26,0.3143369]
[1746807703044,0.27352147,636.36,636.26,0.3143369]
[1746807703544,0.26608631,636.35,636.26,0.3143369]
[1746807706645,0.27352147,636.36,636.26,0.3143369]
[1746807707446,0.26604886,636.35,636.26,0.3143369]
[1746807711649,0.27352147,636.36,636.26,0.3143369]
[1746807711851,0.319,636.86,636.26,0.3143369]
[1746807712049,0.27357093,636.34,636.26,0.3143369]
[1746807712849,0.26609924,636.33,636.26,0.3143369]
[1746807713042,0.26609924,636.33,636.1,0.405]
[1746807713248,0.27357093,636.34,636.11,0.31441102]
[1746807713446,0.26615998,636.33,636.11,0.31441102]
[1746807713748,0.27357093,636.34,636.11,0.31441102]
[1746807713749,0.26615998,636.32,636.11,0.31441102]
[1746807713950,0.26615998,636.31,636.11,0.31441102]
[1746807714345,0.26615998,636.3,636.11,0.31441102]
[1746807714850,0.26615998,636.29,636.11,0.31441102]
[1746807715051,0.26615998,636.28,636.11,0.31441102]
[1746807715352,0.26615998,636.27,636.11,0.31441102]
[1746807715652,0.26615998,636.26,636.11,0.31441102]
[1746807716153,0.26615998,636.25,636.11,0.31441102]
[1746807716453,0.26615998,636.28,636.11,0.31441102]
[1746807716653,0.26615998,636.27,636.11,0.31441102]
[1746807717051,0.26615998,636.26,636.11,0.31441102]
[1746807717457,0.26615998,636.25,636.11,0.31441102]
[1746807717951,0.26615998,636.24,636.11,0.31441102]
[1746807718356,0.26615998,636.23,636.11,0.31441102]
[1746807718756,0.26615998,636.28,636.11,0.31441102]
[1746807720057,0.26615998,636.27,636.11,0.31441102]
[1746807720358,0.26615998,636.28,636.11,0.31441102]
[1746807727164,0.27358921,636.27,636.11,0.31441102]
[1746807727558,0.26615998,636.26,636.11,0.31441102]
[1746807729964,0.27358921,636.25,636.11,0.31441102]
[1746807731165,0.26615998,636.24,636.11,0.31441102]
[1746807732966,0.27365267,636.23,636.11,0.31441102]
[1746807733366,0.26615998,636.22,636.11,0.31441102]
[1746807735963,0.26615998,636.7,636.11,0.31441102]
[1746807736269,0.26615998,636.69,636.11,0.31441102]
[1746807736464,0.26615998,636.68,636.11,0.31441102]
[1746807736769,0.26615998,636.67,636.11,0.31441102]
[1746807737068,0.5397793,636.67,636.11,0.31441102]
[1746807737469,0.26615998,636.66,636.11,0.31441102]
[1746807737865,0.26615998,636.65,636.11,0.31441102]
[1746807738168,0.26615998,636.64,636.11,0.31441102]
[1746807738467,0.26615998,636.63,636.11,0.31441102]
[1746807738764,0.26615998,636.62,636.11,0.31441102]
[1746807739169,0.5397793,636.61,636.11,0.31441102]
[1746807739464,0.26615998,636.6,636.11,0.31441102]
[1746807739966,0.26615998,636.59,636.11,0.31441102]
[1746807740364,0.26615998,636.58,636.11,0.31441102]
[1746807740670,0.26615998,636.57,636.11,0.31441102]
[1746807741167,0.26615998,636.56,636.11,0.31441102]
[1746807742070,0.539775,636.55,636.11,0.31441102]
[1746807742470,0.26615998,636.54,636.11,0.31441102]
[1746807742767,0.26615998,636.53,636.11,0.31441102]
[1746807743172,0.26615998,636.52,636.11,0.31441102]
[1746807743474,0.26615998,636.51,636.11,0.31441102]
[1746807743868,0.26615998,636.5,636.11,0.31441102]
[1746807744174,0.26615998,636.49,636.11,0.31441102]
[1746807745070,0.27363654,636.48,636.11,0.31441102]
[1746807745272,0.53979652,636.48,636.11,0.31441102]
[1746807745670,0.26615998,636.47,636.11,0.31441102]
[1746807746071,0.26615998,636.46,636.11,0.31441102]
[1746807746375,0.26615998,636.45,636.11,0.31441102]
[1746807746676,0.27363654,636.48,636.11,0.31441102]
[1746807746972,0.2661363,636.47,636.11,0.31441102]
[1746807747274,0.2661363,636.46,636.11,0.31441102]
[1746807747477,0.27363654,636.48,636.11,0.31441102]
[1746807747774,0.2661355,636.47,636.11,0.31441102]
[1746807748175,0.2661355,636.51,636.11,0.31441102]
[1746807748475,0.27361502,636.46,636.11,0.31441102]
[1746807748976,0.2661355,636.45,636.11,0.31441102]
[1746807751082,0.2661355,636.44,636.11,0.31441102]
[1746807751284,0.2661355,636.44,635.9,0.376]
[1746807751481,0.2661355,636.43,635.9,0.376]
[1746807751878,0.2661355,636.42,635.9,0.376]
[1746807752683,0.2661355,636.41,635.9,0.376]
[1746807752982,0.2661355,636.4,635.9,0.376]
[1746807753284,0.2661355,636.39,635.9,0.376]
[1746807753685,0.2661355,636.38,635.9,0.376]
[1746807754180,0.2661355,636.37,635.9,0.376]
[1746807754384,0.2661355,636.36,635.9,0.376]
[1746807754682,0.27368818,636.37,635.9,0.376]
[1746807754683,0.2661355,636.35,635.9,0.376]
[1746807754982,0.2661355,636.34,635.9,0.376]
[1746807755583,0.2661355,636.33,635.9,0.376]
[1746807755879,0.2661355,636.32,635.9,0.376]
[1746807756187,0.2661355,636.31,635.9,0.376]
[1746807756486,0.2661355,636.31,635.83,0.31454948]
[1746807756685,0.2661355,636.3,635.83,0.31454948]
[1746807756881,0.2661355,636.29,635.83,0.31454948]
[1746807757287,0.2661355,636.28,635.83,0.31454948]
[1746807757593,0.2661355,636.27,635.83,0.31454948]
[1746807758086,0.2661355,636.26,635.83,0.31454948]
[1746807758490,0.2661355,636.25,635.83,0.31454948]
[1746807759183,0.2661355,636.24,635.83,0.31454948]
[1746807759788,0.2661355,636.23,635.83,0.31454948]
[1746807760182,0.2661355,636.22,635.83,0.31454948]
[1746807760383,0.2661355,636.21,635.83,0.31454948]
[1746807760788,0.2661355,636.36,635.83,0.31454948]
[1746807761190,0.2661355,636.35,635.83,0.31454948]
[1746807761488,0.2661355,636.34,635.83,0.31454948]
[1746807761791,0.2661355,636.33,635.84,0.31454453]
[1746807762185,0.2661355,636.36,635.84,0.31454453]
[1746807762589,0.2661355,636.35,635.84,0.31454453]
[1746807762986,0.53981507,636.34,635.84,0.31454453]
[1746807763385,0.2661355,636.33,635.84,0.31454453]
[1746807763988,0.27367957,636.34,635.84,0.31454453]
[1746807764286,0.26620045,636.33,635.84,0.31454453]
[1746807766090,0.26620045,636.32,635.84,0.31454453]
[1746807766491,0.26620045,636.33,635.84,0.31454453]
[1746807767792,0.27367957,636.34,635.84,0.31454453]
[1746807768293,0.26620704,636.33,635.84,0.31454453]
[1746807768995,0.27369679,636.32,635.84,0.31454453]
[1746807769396,0.26620704,636.31,635.84,0.31454453]
[1746807771995,0.27367957,636.3,635.84,0.31454453]
[1746807772495,0.26620704,636.29,635.84,0.31454453]
[1746807777399,0.27367957,636.3,635.84,0.31454453]
[1746807777694,0.307,636.5,635.84,0.31454453]
[1746807777899,0.26619654,636.29,635.84,0.31454453]
[1746807778099,0.53986751,636.29,635.84,0.31454453]
[1746807778291,0.26619654,636.49,635.84,0.31454453]
[1746807778493,0.26619654,636.48,635.84,0.31454453]
[1746807778800,0.26619654,636.47,635.84,0.31454453]
[1746807779201,0.26619654,636.46,635.84,0.31454453]
[1746807779502,0.26619654,636.45,635.84,0.31454453]
[1746807779902,0.26619654,636.46,635.84,0.31454453]
[1746807780497,0.27367097,636.47,635.84,0.31454453]
[1746807780700,0.307,636.5,635.84,0.31454453]
[1746807780897,0.26619772,636.46,635.84,0.31454453]
[1746807781401,0.53984501,636.49,635.84,0.31454453]
[1746807781597,0.26619772,636.48,635.84,0.31454453]
[1746807783405,0.27364729,636.49,635.84,0.31454453]
[1746807783704,0.307,636.5,635.84,0.31454453]
[1746807783900,0.26618836,636.48,635.84,0.31454453]
[1746807784100,0.53986793,636.48,635.84,0.31454453]
[1746807784302,0.27367957,636.48,635.84,0.31454453]
[1746807784502,0.26618836,636.47,635.84,0.31454453]
[1746807785300,0.26618836,636.46,635.84,0.31454453]
[1746807785702,0.26618836,636.45,635.84,0.31454453]
[1746807786100,0.26618836,636.44,635.84,0.31454453]
[1746807786303,0.26618836,636.47,635.84,0.31454453]
[1746807786601,0.26618836,636.46,635.84,0.31454453]
[1746807787005,0.26618836,636.45,635.84,0.31454453]
[1746807787199,0.60418836,636.45,635.84,0.31454453]
[1746807787705,0.26618836,636.44,635.84,0.31454453]
[1746807788506,0.26618836,636.43,635.84,0.31454453]
[1746807789005,0.26618836,636.44,635.84,0.31454453]
[1746807789607,0.26618836,636.43,635.84,0.31454453]
[1746807789907,0.26618836,636.42,635.84,0.31454453]
[1746807790309,0.26618836,636.44,635.84,0.31454453]
[1746807792911,0.27358813,636.43,635.84,0.31454453]
[1746807793105,0.26618836,636.42,635.84,0.31454453]
[1746807796421,0.26618836,636.41,635.84,0.31454453]
[1746807797215,0.26618836,636.42,635.84,0.31454453]
[1746807799016,0.27360749,636.41,635.84,0.31454453]
[1746807799514,0.26618836,636.4,635.84,0.31454453]
[1746807802116,0.2736161,636.39,635.84,0.31454453]
[1746807802517,0.26618836,636.38,635.84,0.31454453]
[1746807808015,0.26618836,636.44,635.84,0.31454453]
[1746807809418,0.61155587,636.45,635.84,0.31454453]
[1746807809917,0.26590231,636.44,635.84,0.31454453]
[1746807811423,0.338,636.45,635.84,0.31454453]
[1746807813127,0.2658894,636.44,635.84,0.31454453]
[1746807813924,0.2658894,636.44,635.85,0.458]
[1746807815630,0.61155587,636.45,635.85,0.458]
[1746807816728,0.338,636.45,635.85,0.458]
[1746807817128,0.6115548,636.45,635.85,0.458]
[1746807818530,0.2659049,636.44,635.85,0.458]
[1746807820232,0.273572,636.43,635.85,0.458]
[1746807820533,0.2659049,636.42,635.85,0.458]
[1746807820832,0.273572,636.43,635.86,0.31453464]
[1746807821130,0.26591613,636.42,635.86,0.31453464]
[1746807823135,0.27344732,636.45,635.86,0.31453464]
[1746807825541,0.383,636.46,635.86,0.31453464]
[1746807838751,0.26589073,636.45,635.86,0.31453464]
[1746807840452,0.26589073,636.45,635.87,0.457]
[1746807840852,0.383,636.46,635.87,0.457]
[1746807841250,0.26593278,636.45,635.87,0.457]
[1746807842355,0.27356232,636.44,635.87,0.457]
[1746807842654,0.26593278,636.43,635.87,0.457]
[1746807844054,0.383,636.46,635.87,0.457]
[1746807846453,0.26590977,636.45,635.87,0.457]
[1746807847357,0.27355372,636.44,635.87,0.457]
[1746807847756,0.26590977,636.43,635.87,0.457]
[1746807849259,0.26590977,636.43,635.88,0.58886777]
[1746807849557,0.26590977,636.43,635.89,0.58883766]
[1746807849758,0.26590977,636.45,635.87,0.457]
[1746807849958,0.26590977,636.45,635.88,0.58875301]
[1746807850159,0.26590977,636.45,635.89,0.58875301]
[1746807850358,0.26590977,636.45,635.9,0.58875301]
[1746807850558,0.26590977,636.45,635.87,0.457]
[1746807850758,0.26590977,636.45,635.88,0.58859302]
[1746807850958,0.26590977,636.45,635.89,0.58859302]
[1746807851254,0.26590977,636.45,635.87,0.457]
[1746807851558,0.26590977,636.45,635.88,0.58856913]
[1746807851855,0.26590977,636.45,635.89,0.90308893]
[1746807852058,0.26590977,636.45,635.89,0.3145198]
[1746807853059,0.383,636.46,635.89,0.3145198]
[1746807853461,0.383,636.46,635.9,0.58861768]
[1746807853655,0.383,636.46,635.89,0.3145198]
[1746807853859,0.2735419,636.49,635.9,0.5884445]
[1746807854060,0.2735419,636.49,635.89,0.3145198]
[1746807854356,0.2735419,636.49,635.9,0.58843788]
[1746807854559,0.2735419,636.49,635.89,0.3145198]
[1746807854859,0.2735419,636.49,635.9,0.58842073]
[1746807855061,0.2735419,636.49,635.89,0.3145198]
[1746807855258,0.2735419,636.49,635.9,0.58856068]
[1746807855455,0.2735419,636.49,635.91,0.58856068]
[1746807855660,2.0308231,637.67,635.89,0.3145198]
[1746807855963,0.27342906,636.52,635.9,0.58839915]
[1746807856159,0.27342906,636.52,635.91,0.58839915]
[1746807856360,2.0308231,637.67,635.92,0.58839915]
[1746807856561,0.27341939,636.55,635.89,0.3145198]
[1746807856758,0.27341939,636.55,635.9,0.58825713]
[1746807856959,0.459,636.54,635.91,0.58825713]
[1746807857160,0.459,636.54,635.92,0.58825713]
[1746807857364,0.459,636.54,635.93,0.58825713]
[1746807857561,0.459,636.54,635.94,0.58825713]
[1746807857759,0.459,636.54,635.89,0.3145198]
[1746807857957,0.459,636.54,635.9,0.58850509]
[1746807858264,0.459,636.54,635.91,0.58850509]
[1746807858462,0.459,636.54,635.92,0.58850509]
[1746807858665,0.459,636.54,635.93,0.58850509]
[1746807858859,0.459,636.54,635.94,0.58850509]
[1746807859064,0.459,636.54,635.95,0.58850509]
[1746807859261,0.459,636.54,635.89,0.3145198]
[1746807859262,0.459,636.54,635.96,0.58850509]
[1746807859459,0.459,636.54,635.89,0.3145198]
[1746807859659,0.459,636.54,635.9,0.58890996]
[1746807859865,0.459,636.54,635.91,0.58890996]
[1746807860066,0.459,636.54,635.92,0.58890996]
[1746807860366,0.459,636.54,635.93,0.58890996]
[1746807860564,0.459,636.54,635.94,0.58890996]
[1746807860766,0.459,636.54,635.89,0.3145198]
[1746807860963,0.459,636.54,635.9,0.58924547]
[1746807861164,0.459,636.54,635.91,0.58924547]
[1746807861361,0.2658895,636.53,635.92,0.58962831]
[1746807861661,0.2658895,636.53,635.89,0.3145198]
[1746807861966,0.2658895,636.53,635.92,0.316]
[1746807862461,0.27354405,636.52,635.92,0.316]
[1746807862766,0.2658895,636.51,635.92,0.316]
[1746807863066,0.2658895,636.51,635.93,0.58989514]
[1746807863266,0.2658895,636.51,635.94,0.58991325]
[1746807863460,0.2658895,636.51,635.92,0.316]
[1746807863665,0.2658895,636.51,635.93,0.58985767]
[1746807863862,0.2658895,636.51,635.94,0.58985767]
[1746807864061,0.2658895,636.51,635.92,0.316]
[1746807864261,0.2658895,636.51,635.93,0.58997313]
[1746807864464,0.2658895,636.51,635.94,0.58997313]
[1746807864668,0.2658895,636.51,635.92,0.316]
[1746807866370,0.2658895,636.51,635.93,0.31450002]
[1746807868070,0.27355157,636.5,635.93,0.31450002]
[1746807868671,0.2658895,636.49,635.93,0.31450002]
[1746807869368,0.2658895,636.49,635.94,0.58914133]
[1746807869573,0.2658895,636.49,635.95,0.90363146]
[1746807869772,0.2658895,636.49,635.95,0.31449013]
[1746807870073,0.2658895,636.49,635.96,0.58901353]
[1746807870269,0.2658895,636.49,635.92,0.316]
[1746807870270,0.2658895,636.49,635.97,0.90337705]
[1746807870473,0.2658895,636.49,635.98,0.9033721]
[1746807870673,0.2658895,636.49,635.99,0.58889681]
[1746807870870,0.2658895,636.49,636.0,0.90336221]
[1746807871069,0.27352685,636.48,636.01,0.31446046]
[1746807871674,0.26588483,636.47,636.01,0.31446046]
[1746807874074,0.27353437,636.46,636.01,0.31446046]
[1746807876876,0.26589185,636.45,636.01,0.31446046]
[1746807877077,0.26589185,636.53,636.01,0.31446046]
[1746807877280,0.27353437,636.46,636.01,0.31446046]
[1746807877776,0.26589185,636.45,636.01,0.31446046]
[1746807879579,0.26589185,636.45,636.02,0.401]
[1746807879779,0.26589185,636.45,636.03,0.31445057]
[1746807880075,0.27346451,636.44,636.03,0.31445057]
[1746807880481,0.26589185,636.43,636.03,0.31445057]
[1746807883081,0.27353975,636.42,636.03,0.31445057]
[1746807883274,0.26589185,636.41,636.03,0.31445057]
[1746807885982,0.451,636.63,636.03,0.31445057]
[1746807886178,0.2735204,636.43,636.03,0.31445057]
[1746807886375,0.26592468,636.62,636.03,0.31445057]
[1746807886681,0.2735204,636.61,636.03,0.31445057]
[1746807886883,0.26592468,636.6,636.03,0.31445057]
[1746807887382,0.2735204,636.61,636.03,0.31445057]
[1746807887677,0.26592583,636.6,636.03,0.31445057]
[1746807888678,0.2735204,636.61,636.03,0.31445057]
[1746807888875,0.451,636.63,636.03,0.31445057]
[1746807889082,0.2735161,636.6,636.03,0.31445057]
[1746807891083,0.26592591,636.59,636.03,0.31445057]
[1746807892082,0.2735118,636.58,636.03,0.31445057]
[1746807892887,0.26592591,636.57,636.03,0.31445057]
[1746807896995,0.26592591,636.57,636.04,0.58861212]
[1746807897195,0.26592591,636.57,636.03,0.31445057]
[1746807898192,0.2735075,636.56,636.03,0.31445057]
[1746807898392,0.26592591,636.55,636.03,0.31445057]
[1746807899199,0.2735075,636.56,636.03,0.31445057]
[1746807899502,0.26587619,636.55,636.03,0.31445057]
[1746807902502,0.26587619,636.55,636.04,0.5887679]
[1746807902701,0.26587619,636.55,636.05,0.5887679]
[1746807902904,0.26587619,636.55,636.06,0.5887679]
[1746807903197,0.2735075,636.56,636.07,0.5887679]
[1746807903402,0.2735075,636.56,636.06,0.31443574]
[1746807903601,0.2735075,636.56,636.08,0.31442585]
[1746807903802,0.451,636.63,636.08,0.31442585]
[1746807904001,0.26585094,636.55,636.08,0.31442585]
[1746807904199,0.27350427,636.55,636.08,0.31442585]
[1746807904402,0.26585094,636.62,636.08,0.31442585]
[1746807904607,0.53935736,636.54,636.08,0.31442585]
[1746807904900,0.26585094,636.53,636.08,0.31442585]
[1746807905101,0.53936059,636.53,636.08,0.31442585]